bitfinex/quotes_ETHUSD_20241217
["timestamp","ask_amount","ask_price","bid_price","bid_amount"]
[1734444361628,0.06494674,4001.9,4000.0,0.7782]
[1734444362323,0.06494674,4001.9,4000.1,0.02499252]
[1734444362526,0.06494674,4001.9,4000.2,0.7782]
[1734444362725,0.06494674,4001.9,4000.0,0.33253645]
[1734444362726,0.06494674,4001.9,4000.4,3.7782]
[1734444363035,0.06494674,4001.9,4000.6,0.7782]
[1734444363629,0.06468436,4001.8,4000.6,0.7782]
[1734444364035,0.06468436,4001.8,4000.8,0.7782]
[1734444364236,2.8767671,4002.5,4001.0,0.7782]
[1734444364418,0.06475521,4002.4,4001.2,0.7782]
[1734444364618,1.03130296,4002.9,4001.4,0.7782]
[1734444364820,2.8767671,4003.0,4001.4,0.7782]
[1734444365086,0.06269888,4002.9,4001.4,0.7782]
[1734444367543,0.06269888,4002.9,4001.0,3.0]
[1734444367544,0.06269888,4002.9,4001.5,0.02498732]
[1734444367853,0.06269888,4002.9,4001.6,0.7782]
[1734444368058,2.33511587,4002.8,4001.6,0.7782]
[1734444368216,2.3980319,4002.8,4001.6,0.7782]
[1734444368994,2.33511587,4002.4,4001.6,0.7782]
[1734444369289,0.06290778,4002.3,4001.6,0.7782]
[1734444369634,2.33511587,4002.0,4001.6,0.7782]
[1734444369970,0.06287218,4001.9,4001.6,0.7782]
[1734444370486,2.33511587,4002.4,4001.6,0.7782]
[1734444370694,0.06264979,4001.8,4001.6,0.7782]
[1734444370965,2.33511587,4002.8,4001.6,0.7782]
[1734444371133,2.33511587,4002.8,4001.7,0.80318614]
[1734444371329,2.33511587,4002.8,4001.7,0.7782]
[1734444372135,2.87367576,4003.2,4001.7,0.7782]
[1734444374173,2.87367576,4003.6,4001.8,0.80318554]
[1734444374341,2.87367576,4003.6,4001.0,0.30473134]
[1734444374342,2.87367576,4003.6,4002.0,0.7782]
[1734444374537,2.87367576,4003.6,4002.2,0.7782]
[1734444377542,2.49784,4003.5,4002.2,0.7782]
[1734444377838,2.87367576,4003.6,4002.2,0.7782]
[1734444378490,2.49788,4003.4,4002.2,0.7782]
[1734444378649,2.87367576,4003.6,4002.2,0.7782]
[1734444378650,5.37142576,4003.6,4002.2,0.7782]
[1734444378833,2.87367576,4003.6,4002.2,0.7782]
[1734444380044,0.85870023,4003.5,4002.2,0.7782]
[1734444380528,3.35654023,4003.5,4002.2,0.7782]
[1734444380795,3.90497872,4003.6,4002.2,0.7782]
[1734444380959,0.85892257,4003.5,4002.2,0.7782]
[1734444381866,2.87367576,4003.1,4002.2,0.7782]
[1734444382073,3.55537576,4003.1,4002.2,0.7782]
[1734444382297,0.06355051,4003.0,4002.2,0.7782]
[1734444383089,0.06355051,4003.0,4002.3,0.02498549]
[1734444383299,3.90497872,4003.6,4002.4,0.795]
[1734444383467,0.06347389,4003.5,4002.4,0.795]
[1734444385709,2.87367576,4003.1,4002.4,0.795]
[1734444386204,0.06363541,4003.0,4002.4,0.795]
[1734444386570,1.03130296,4002.8,4002.4,0.795]
[1734444386868,0.0635975,4002.7,4002.4,0.795]
[1734444387878,2.87367576,4002.6,4001.9,0.795]
[1734444388071,0.06332755,4002.5,4001.9,0.795]
[1734444388280,2.87367576,4002.1,4000.3,1.02846601]
[1734444388574,0.06309956,4002.0,4000.5,0.795]
[1734444393141,1.03130296,4001.5,4000.5,0.795]
[1734444393700,0.06205469,4001.4,4000.5,0.795]
[1734444397782,2.87367576,4001.1,4000.5,0.795]
[1734444398176,0.92331443,4001.0,4000.5,0.795]
[1734444399840,1.29465242,4000.9,4000.5,0.795]
[1734444400207,2.87367576,4000.7,4000.5,0.795]
[1734444400543,0.05952766,4000.6,3999.3,0.7678]
[1734444400709,2.87367576,4000.0,3999.5,0.7678]
[1734444401143,0.05927918,3999.9,3999.5,0.7678]
[1734444404030,2.33861975,3999.6,3999.5,0.7678]
[1734444404469,2.39707123,3999.6,3999.5,0.7678]
[1734444405004,0.05845148,3999.6,3999.5,0.7678]
[1734444405496,0.05820149,3999.6,3999.5,0.7678]
[1734444405695,2.33861975,4000.0,3999.5,0.7678]
[1734444406009,0.05820149,3999.6,3999.5,0.7678]
[1734444406194,2.33861975,4000.0,3999.5,0.7678]
[1734444406395,0.05820149,3999.6,3999.5,0.7678]
[1734444406598,2.33861975,4000.0,3999.5,0.7678]
[1734444406812,0.05806148,3999.6,3999.5,0.7678]
[1734444407127,0.05806148,3999.6,3999.5,0.766004]
[1734444407291,2.33861975,4000.0,3999.5,0.766004]
[1734444407721,0.05819445,3999.9,3999.5,0.766004]
[1734444409232,2.33861975,4000.2,3999.5,0.766004]
[1734444409396,0.0583368,3999.8,3999.5,0.766004]
[1734444409723,0.05832414,3999.7,3999.5,0.766004]
[1734444410021,1.54695445,4000.5,3999.5,0.766004]
[1734444410523,0.05836271,4000.4,3999.7,0.8195]
[1734444412523,0.05852506,4000.3,3999.7,0.8195]
[1734444412885,2.33861975,4000.6,3999.7,0.8195]
[1734444413127,0.05851241,4000.2,3999.7,0.8195]
[1734444413283,2.33861975,4000.6,3999.7,0.8195]
[1734444413489,2.33861975,3999.8,3998.2,0.759]
[1734444414012,0.6834,4000.2,3998.2,0.759]
[1734444414013,2.33861975,3999.4,3998.2,0.93925091]
[1734444414324,0.05817351,3999.3,3998.2,0.759]
[1734444417019,0.05817351,3999.3,3998.3,0.02315795]
[1734444417222,0.05817351,3999.3,3998.3,0.759]
[1734444417421,2.33861975,3999.8,3998.3,0.759]
[1734444417647,0.05734067,3999.2,3998.3,0.759]
[1734444417810,2.33861975,3999.8,3998.4,0.78400591]
[1734444417996,1.041624,4000.1,3998.6,0.759]
[1734444417997,0.05732801,3999.1,3998.6,0.759]
[1734444418197,1.041624,4000.1,3998.8,0.759]
[1734444418604,0.05745191,4000.0,3998.8,0.759]
[1734444419027,0.05745191,4000.0,3998.9,0.02500176]
[1734444419328,0.05745191,4000.0,3999.0,0.759]
[1734444419531,0.05745191,4000.0,3999.2,0.759]
[1734444420799,0.05745191,4000.0,3999.2,0.3759]
[1734444421016,0.05745191,4000.0,3999.3,0.8239]
[1734444421193,2.33861975,4000.6,3999.3,0.8239]
[1734444421393,3.540864,4001.3,3998.6,0.02499713]
[1734444421394,0.05596936,3999.9,3999.4,3.0250003]
[1734444421598,1.041624,4001.3,3999.4,3.0250003]
[1734444421599,1.041624,4001.3,3999.5,0.8239]
[1734444421850,1.041624,4001.3,3999.7,0.8239]
[1734444422050,0.05426848,4001.2,3999.9,0.8239]
[1734444422194,0.18201362,4001.2,3999.9,0.8239]
[1734444422699,2.33861975,4001.0,3999.9,0.8239]
[1734444423199,0.0544105,4000.9,3999.9,0.8239]
[1734444423596,0.0544105,4000.9,4000.0,0.8239]
[1734444424059,1.041624,4001.3,4000.1,0.02499672]
[1734444424354,1.041624,4001.3,4000.2,0.8239]
[1734444424678,0.0551585,4001.2,4000.4,0.8239]
[1734444424839,0.0551585,4001.2,4000.6,0.8239]
[1734444425045,0.0551585,4001.2,4000.8,0.8239]
[1734444425338,1.041624,4001.3,4000.8,0.8239]
[1734444425578,0.05514586,4001.1,4000.8,0.8239]
[1734444425778,1.041624,4001.3,4000.8,0.8239]
[1734444426076,0.05557798,4001.0,4000.8,0.8239]
[1734444426370,1.041624,4001.3,4000.8,0.8239]
[1734444426371,0.05556533,4000.9,4000.8,0.8239]
[1734444426735,1.041624,4001.3,4000.8,0.8239]
[1734444426971,0.05598513,4000.9,4000.8,0.8239]
[1734444427121,1.041624,4001.3,4000.8,0.8239]
[1734444427473,0.05598513,4000.9,4000.8,0.8239]
[1734444427615,1.84775072,4002.2,4000.8,0.8239]
[1734444427821,0.05598513,4000.9,4000.8,0.8239]
[1734444428050,0.86055435,4002.1,4000.8,0.8239]
[1734444428581,0.05612422,4002.0,4000.8,0.8239]
[1734444429536,0.05612422,4002.0,4001.0,3.0]
[1734444429742,0.05612422,4002.0,4001.1,0.31853678]
[1734444429946,0.05612422,4002.0,4001.3,3.0]
[1734444430233,1.041624,4002.2,4001.4,0.8239]
[1734444430441,0.05632643,4001.9,4001.4,0.8239]
[1734444430654,1.041624,4002.2,4001.4,0.8239]
[1734444430858,0.05631379,4001.8,4001.6,0.8239]
[1734444431035,1.041624,4002.2,4001.6,0.8239]
[1734444431221,0.05630114,4001.7,4001.6,0.8239]
[1734444431421,1.041624,4002.2,4001.6,0.8239]
[1734444431924,0.05635171,4002.1,4001.6,0.8239]
[1734444432725,0.05635171,4002.1,3999.4,1.3793]
[1734444432930,0.05635171,4002.1,3999.8,0.55]
[1734444433154,0.05635171,4002.1,4000.0,0.55]
[1734444433322,0.86157803,4002.0,4000.1,0.8293]
[1734444433526,0.91864141,4002.0,4000.2,0.02498991]
[1734444433727,0.91864141,4002.0,4000.4,0.55]
[1734444433927,0.91864141,4002.0,4000.5,0.85428993]
[1734444434178,0.91864141,4002.0,4001.0,0.8293]
[1734444434750,0.05706338,4002.0,4001.0,0.8293]
[1734444435083,0.05706338,4002.0,4001.1,3.0]
[1734444435232,0.05706338,4002.0,4001.0,0.8293]
[1734444436866,0.74046338,4002.0,4001.0,0.8293]
[1734444437646,0.05706338,4002.0,4001.0,0.8293]
[1734444437876,0.05706338,4002.0,4001.2,0.8237]
[1734444438083,0.05706338,4002.0,4001.4,0.8237]
[1734444439471,0.05508881,4002.0,4001.4,0.8237]
[1734444439660,1.55874187,4002.3,4001.7,0.8237]
[1734444439989,2.81e-06,4003.3,4001.7,0.8237]
[1734444440491,2.81e-06,4003.3,4001.6,3.0]
[1734444440492,0.0516418,4003.2,4002.0,0.8237]
[1734444440650,1.55874187,4003.5,4002.3,2.33491442]
[1734444440853,1.55874187,4003.5,4002.5,0.8237]
[1734444441076,0.0502349,4003.4,4002.7,0.8237]
[1734444445588,2.08324801,4003.7,4002.7,0.8237]
[1734444445991,0.6834,4004.1,4002.8,0.02497844]
[1734444446298,0.05137407,4004.0,4002.7,0.8237]
[1734444446498,0.6834,4004.1,4002.7,0.8237]
[1734444447671,0.05137407,4004.0,4002.7,0.8237]
[1734444449506,0.6834,4003.9,4002.4,0.8237]
[1734444449825,0.05139873,4003.8,4002.4,0.8237]
[1734444452090,0.05139873,4003.8,4002.5,0.01808103]
[1734444452326,0.6834,4004.3,4002.6,0.55]
[1734444452526,2.49676,4005.2,4002.8,0.8201]
[1734444452527,0.6834,4004.8,4002.8,0.8201]
[1734444452684,0.05103497,4004.2,4002.9,0.84507579]
[1734444453035,0.6834,4005.0,4003.1,0.8201]
[1734444453329,0.05128305,4004.9,4003.2,0.84507324]
[1734444453838,0.05128305,4004.9,4003.2,0.8201]
[1734444454130,0.05128305,4004.9,4003.4,0.8201]
[1734444454935,0.05128305,4004.9,4003.5,0.02497379]
[1734444455080,0.05128305,4004.9,4003.6,0.8201]
[1734444457492,0.6834,4004.8,4003.6,0.8201]
[1734444457730,0.05133337,4004.7,4003.6,0.8201]
[1734444457897,0.05133337,4004.7,4002.7,0.42599069]
[1734444457898,0.05133337,4004.7,4002.8,0.8201]
[1734444458100,0.6834,4004.6,4002.8,0.8201]
[1734444458295,0.05177223,4004.5,4002.8,0.8201]
[1734444459036,0.6834,4004.4,4002.8,0.8201]
[1734444459398,0.05157233,4004.3,4002.8,0.8201]
[1734444459729,2.92329823,4004.3,4002.8,0.8201]
[1734444459893,0.6834,4004.2,4002.8,0.8201]
[1734444460097,0.05126264,4004.1,4002.8,0.8201]
[1734444461132,0.05126264,4004.1,4002.9,0.02497757]
[1734444461307,0.05126264,4004.1,4003.2,0.8201]
[1734444461513,0.6834,4004.8,4003.4,0.8201]
[1734444461712,0.6834,4004.8,4003.6,0.8201]
[1734444462107,0.6834,4005.3,4003.6,0.8201]
[1734444462301,0.05132164,4005.2,4003.7,0.02497134]
[1734444462499,0.05132164,4005.2,4003.8,0.8201]
[1734444462806,0.05132164,4005.2,4004.0,0.8201]
[1734444463012,0.163312,4005.6,4004.0,0.8201]
[1734444463210,0.05130902,4005.1,4004.0,0.8201]
[1734444463533,0.163312,4005.6,4004.0,0.8201]
[1734444463939,0.0513595,4005.5,4004.0,0.8201]
[1734444464095,0.0513595,4005.5,4004.1,0.17546071]
[1734444464830,0.0513595,4005.5,4004.2,0.8201]
[1734444465018,0.0513595,4005.5,4004.1,0.17546071]
[1734444465019,0.0513595,4005.5,4004.3,0.02496849]
[1734444465229,0.0513595,4005.5,4004.3,0.8201]
[1734444465420,0.0513595,4005.5,4003.8,3.0]
[1734444465421,0.0513595,4005.5,4004.6,0.55]
[1734444465616,0.0513595,4005.5,4004.7,0.19450668]
[1734444467244,0.0513595,4005.5,4004.5,0.8201]
[1734444468435,0.6834,4005.4,4003.3,3.43701]
[1734444468638,0.6834,4005.4,4003.4,0.7622]
[1734444468812,0.05279609,4005.3,4003.4,0.7622]
[1734444469823,0.6834,4005.2,4003.4,0.7622]
[1734444470016,3.1802,4005.2,4003.4,0.7622]
[1734444470223,0.05244163,4005.1,4003.4,0.7622]
[1734444471461,0.05244163,4005.1,4002.3,1.04350913]
[1734444471462,0.05244163,4005.1,4003.6,0.7622]
[1734444471879,0.05244163,4005.1,4003.7,0.02497039]
[1734444472029,0.05244163,4005.1,4004.3,3.0]
[1734444472338,0.05218461,4005.0,4004.4,0.7622]
[1734444472534,0.846712,4005.6,4004.4,0.7622]
[1734444472734,0.846712,4005.6,4004.5,0.37622]
[1734444473041,0.05231254,4005.5,4004.5,0.37622]
[1734444473240,0.05231254,4005.5,4004.6,0.02496763]
[1734444473437,0.05231254,4005.5,4004.9,3.0]
[1734444473646,0.05231254,4005.5,4005.0,0.02496462]
[1734444473945,0.163312,4005.6,4005.0,0.02496462]
[1734444473946,0.163312,4005.6,4005.1,0.30249646]
[1734444474531,0.163312,4005.6,4004.8,0.55]
[1734444476932,0.05094657,4005.5,4004.7,0.7622]
[1734444477640,0.05094657,4005.5,4004.8,0.55]
[1734444478268,0.05094657,4005.5,4005.0,0.55]
[1734444478468,0.05094657,4005.5,4004.9,0.7622]
[1734444479899,0.05094657,4005.5,4005.0,0.55]
[1734444480063,0.05094657,4005.5,4005.1,0.13122]
[1734444480499,0.163312,4005.6,4005.1,0.13122]
[1734444480693,0.6834,4005.5,4004.5,0.7622]
[1734444481004,0.0516122,4005.4,4004.5,0.7622]
[1734444481377,0.0516122,4005.4,4004.6,0.02496649]
[1734444481583,0.0516122,4005.4,4004.6,0.78336532]
[1734444481771,0.163312,4005.6,4004.6,0.78336532]
[1734444481997,0.05153975,4005.3,4004.6,0.78336532]
[1734444482197,0.163312,4005.6,4004.7,0.55]
[1734444482371,0.163312,4005.6,4004.9,0.55]
[1734444482595,0.163312,4005.6,4005.1,0.55]
[1734444483692,0.163312,4005.6,4005.2,0.7833626]
[1734444484000,2e-06,4005.6,4005.3,0.55]
[1734444485406,2e-06,4005.6,4005.2,0.7584]
[1734444485664,2e-06,4005.6,4005.3,0.55]
[1734444485955,2e-06,4005.6,4005.4,0.13084]
[1734444490401,2e-06,4005.6,4005.5,0.57495309]
[1734444490805,2e-06,4005.6,4005.4,0.13084]
[1734444491328,2e-06,4005.6,4004.5,0.7584]
[1734444492187,0.6834,4005.5,4004.2,0.7584]
[1734444492499,0.04917303,4005.4,4004.2,0.7584]
[1734444492917,0.6834,4005.3,4003.4,0.7584]
[1734444493242,0.04914779,4005.2,4003.5,0.02496909]
[1734444493450,0.04914779,4005.2,4003.6,0.7584]
[1734444493611,0.683402,4005.6,4003.8,0.7584]
[1734444493937,0.683402,4005.6,4004.5,0.7584]
[1734444494139,0.04880173,4005.5,4004.5,0.7584]
[1734444494719,0.04880173,4005.5,4004.6,0.55]
[1734444495242,0.04880173,4005.5,4004.7,0.7584]
[1734444495446,0.04880173,4005.5,4005.3,3.0]
[1734444495739,0.04880173,4005.5,4004.7,0.7584]
[1734444495740,0.04880173,4005.5,4005.4,0.3]
[1734444495927,0.04880173,4005.5,4004.8,0.55]
[1734444496331,0.04880173,4005.5,4004.7,0.7584]
[1734444496503,0.04880173,4005.5,4004.4,0.55]
[1734444496504,0.6834,4005.4,4004.4,0.55]
[1734444496707,0.04910555,4005.3,4004.5,3.0]
[1734444496907,0.6834,4005.4,4004.4,0.55]
[1734444497142,0.6834,4005.4,4004.5,3.13131]
[1734444497143,0.04910555,4005.3,4004.5,3.13131]
[1734444497341,0.6834,4005.4,4004.0,0.7631]
[1734444497523,0.04903077,4005.3,4004.0,0.7631]
[1734444498461,0.04903077,4005.3,4004.1,0.02496924]
[1734444498747,0.04903077,4005.3,4004.4,3.0]
[1734444499109,0.04903077,4005.3,4004.0,0.7631]
[1734444499309,0.04903077,4005.3,4004.4,3.0]
[1734444499712,0.04903077,4005.3,4004.0,0.7631]
[1734444499920,0.6834,4005.2,4003.9,0.13453146]
[1734444500123,2.86896906,4004.8,4003.2,1.3131]
[1734444500340,0.6834,4004.7,4002.9,1.54269901]
[1734444500546,2.49724,4004.5,4002.9,1.54269901]
[1734444500721,2.86896906,4004.2,4002.9,1.54269901]
[1734444500923,0.73182557,4004.1,4002.9,1.54269901]
[1734444501841,2.49751,4004.0,4002.9,1.54269901]
[1734444502020,0.6834,4003.9,4002.9,1.54269901]
[1734444502235,0.6834,4003.8,4002.9,1.54269901]
[1734444502412,2.49764,4003.8,4002.9,1.54269901]
[1734444502607,0.7312464,4003.7,4002.9,1.54269901]
[1734444503832,0.7312464,4003.7,4001.7,0.7631]
[1734444504243,0.7312464,4003.7,4002.1,3.0]
[1734444504417,0.7312464,4003.7,4001.7,0.7631]
[1734444504617,0.7312464,4003.7,4001.8,0.13250489]
[1734444505327,0.7312464,4003.7,4001.9,0.02498236]
[1734444505647,0.7312464,4003.7,4001.9,0.82656243]
[1734444506148,0.6834,4003.6,4001.8,0.13250489]
[1734444506364,0.04722741,4003.5,4001.8,0.13250489]
[1734444506547,0.73062741,4003.5,4001.8,0.13250489]
[1734444507124,0.73062741,4003.5,4001.5,0.55]
[1734444508052,0.73062741,4003.5,4001.8,0.55]
[1734444508239,0.73062741,4003.5,4001.1,1.04350913]
[1734444508240,0.73062741,4003.5,4002.1,0.55]
[1734444509518,0.73062741,4003.5,4002.0,0.7631]
[1734444509519,0.6834,4003.5,4002.5,3.0]
[1734444509853,0.04494892,4003.4,4002.0,0.7631]
[1734444510019,0.04494892,4003.4,4002.5,3.0]
[1734444510363,0.6834,4003.5,4002.6,0.32497884]
[1734444510554,0.6834,4003.5,4002.9,3.0]
[1734444510723,3.90529708,4004.7,4002.8,0.7631]
[1734444511053,0.6834,4004.5,4002.8,0.7631]
[1734444511252,0.6834,4004.5,4002.9,0.85153942]
[1734444511550,0.04534991,4004.4,4002.9,0.85153623]
[1734444511778,0.6834,4004.5,4003.1,0.55]
[1734444512002,1.71972802,4005.2,4003.3,0.7983]
[1734444512215,1.71972802,4005.2,4003.5,0.7983]
[1734444512340,1.71972802,4005.2,4003.6,0.57496722]
[1734444512543,0.04434141,4005.1,4003.6,0.82656243]
[1734444512799,1.71972802,4005.2,4004.2,0.55]
[1734444513139,0.04469095,4005.1,4004.2,0.55]
[1734444513773,0.04469095,4005.1,4003.8,0.55]
[1734444513961,1.71972802,4005.2,4003.8,0.55]
[1734444514164,0.04469095,4005.1,4003.8,0.55]
[1734444514349,1.71972802,4005.2,4004.0,0.55]
[1734444514549,1.03632802,4005.2,4004.1,0.13966673]
[1734444514755,0.04469095,4005.1,4004.2,0.55]
[1734444514954,0.04469095,4005.1,4004.1,0.13966673]
[1734444515462,0.04469095,4005.1,4004.1,0.16463455]
[1734444515667,0.04469095,4005.1,4004.1,0.13966673]
[1734444516567,0.6834,4005.0,4004.1,0.13966673]
[1734444516739,0.04501012,4004.9,4003.6,0.8217]
[1734444517890,0.6834,4005.0,4003.1,0.8217]
[1734444518375,0.72878446,4004.9,4003.1,0.8217]
[1734444519550,0.72878446,4004.9,4003.2,0.55]
[1734444520188,0.6834,4004.6,4002.6,0.8217]
[1734444520366,0.6834,4004.6,4002.7,0.18652091]
[1734444520664,0.72810006,4004.5,4002.7,0.18652091]
[1734444520864,0.72810006,4004.5,4002.8,0.02497227]
[1734444521187,0.72810006,4004.5,4002.7,0.18652091]
[1734444521496,0.72810006,4004.5,4002.8,0.57497516]
[1734444521647,0.72810006,4004.5,4003.0,0.55]
[1734444521985,0.72810006,4004.5,4003.4,0.55]
[1734444522186,0.72810006,4004.5,4003.2,0.55]
[1734444522355,0.72810006,4004.5,4003.2,0.57497187]
[1734444522705,0.6834,4004.5,4003.8,0.55]
[1734444522985,0.04480726,4004.4,4003.8,0.55]
[1734444523185,0.04480726,4004.4,4003.9,0.355]
[1734444523484,0.6834,4004.5,4003.8,0.55]
[1734444523485,0.04479463,4004.3,4003.8,0.55]
[1734444523859,0.6834,4004.5,4003.7,3.0]
[1734444524063,0.044782,4004.2,4003.2,0.55]
[1734444524266,0.6834,4004.5,4003.7,3.0]
[1734444524464,0.04476938,4004.1,4003.7,3.0]
[1734444524765,0.6834,4004.5,4003.7,3.3]
[1734444524957,0.6834,4004.5,4003.7,3.0]
[1734444525158,0.04480726,4004.4,4003.7,3.0]
[1734444525357,0.6834,4004.5,4003.5,3.0]
[1734444525560,0.6834,4004.4,4003.0,0.55]
[1734444525876,0.72820726,4004.4,4002.9,0.15831961]
[1734444526883,0.72820726,4004.4,4003.0,0.55]
[1734444527348,0.72820726,4004.4,4003.0,0.70300196]
[1734444529255,0.72820726,4004.4,4003.0,0.55]
[1734444531158,0.6834,4004.1,4002.7,0.55]
[1734444531414,0.6834,4004.1,4001.9,0.7563]
[1734444531619,0.6834,4004.0,4001.9,0.7563]
[1734444531909,0.72770238,4004.0,4001.9,0.7563]
[1734444532654,0.72770238,4004.0,4002.0,0.55]
[1734444532958,0.6834,4003.9,4002.0,0.70828624]
[1734444533286,2.54180238,4004.0,4002.0,0.70828624]
[1734444533287,0.04427712,4003.8,4002.0,0.70828624]
[1734444533480,0.6834,4003.7,4002.0,0.70828624]
[1734444533679,0.72766449,4003.7,4002.0,0.70828624]
[1734444533854,0.6834,4003.7,4002.0,0.70828624]
[1734444534054,0.6834,4003.5,4002.2,0.55]
[1734444534456,0.7274418,4003.4,4002.2,0.55]
[1734444535859,0.7274418,4003.4,4002.0,0.55]
[1734444536658,0.7274418,4003.4,4001.9,0.55]
[1734444536865,0.7274418,4003.4,4002.1,0.55]
[1734444537502,0.7274418,4003.4,4002.0,0.55]
[1734444537814,0.7274418,4003.4,4001.9,3.0]
[1734444537965,0.7274418,4003.4,4002.0,0.55]
[1734444538302,0.7274418,4003.4,4001.9,3.0]
[1734444538524,0.7274418,4003.4,4002.1,0.55]
[1734444538833,0.7274418,4003.4,4002.4,3.0]
[1734444538987,0.7274418,4003.4,4002.1,0.55]
[1734444539191,0.7274418,4003.4,4002.5,0.55]
[1734444539717,0.7274418,4003.4,4002.4,0.55]
[1734444539903,0.7274418,4003.4,4002.6,0.55]
[1734444540588,9.14e-06,4003.3,4002.9,0.752]
[1734444540888,1.56127521,4004.0,4002.8,0.55]
[1734444540889,1.56127521,4004.0,4003.2,0.55]
[1734444541768,0.6834,4004.6,4003.2,0.55]
[1734444542085,0.6834,4004.6,4003.6,0.55]
[1734444542264,0.6834,4004.6,4003.2,0.55]
[1734444542470,0.6834,4004.6,4003.4,0.55]
[1734444543087,0.6834,4004.6,4003.5,3.0]
[1734444543274,0.6834,4004.6,4003.6,0.55]
[1734444543684,0.6834,4004.6,4003.4,0.55]
[1734444547191,0.6834,4004.6,4003.3,0.1302]
[1734444548507,0.6834,4004.4,4003.4,0.55]
[1734444549205,0.6834,4004.2,4002.9,0.55]
[1734444549774,0.6834,4004.0,4002.6,0.55]
[1734444549974,0.6834,4004.0,4002.8,0.55]
[1734444550571,0.03691289,4003.9,4002.8,0.55]
[1734444550976,0.6834,4004.0,4002.8,0.55]
[1734444551908,0.03691289,4003.9,4002.8,0.55]
[1734444552107,0.6834,4004.0,4002.8,0.55]
[1734444552310,0.03690026,4003.8,4002.8,0.55]
[1734444552504,0.03691289,4003.9,4002.8,0.55]
[1734444552712,0.6834,4004.0,4002.8,0.55]
[1734444553115,0.6834,4004.0,4002.8,0.715396]
[1734444553312,0.6834,4004.0,4002.6,0.55]
[1734444553515,0.72016809,4003.9,4002.4,0.55]
[1734444553684,0.72016809,4003.9,4002.1,1.54269901]
[1734444554202,0.6834,4003.5,4002.1,1.54269901]
[1734444554405,2.33374674,4003.2,4001.5,0.8234]
[1734444554607,2.83733166,4003.1,4000.9,1.54269901]
[1734444554917,0.6834,4003.0,4001.1,1.86690913]
[1734444555083,0.6834,4003.0,4001.2,0.34096081]
[1734444555282,0.03565777,4002.9,4001.2,0.34096081]
[1734444555494,0.6834,4002.8,4001.2,0.34096081]
[1734444555695,0.0356325,4002.7,4001.2,3.66463066]
[1734444555896,0.6834,4002.8,4001.2,3.66463066]
[1734444556191,0.0356325,4002.7,4001.3,0.55315398]
[1734444556590,0.6834,4002.8,4001.3,0.55315398]
[1734444556791,0.6834,4002.7,4001.2,0.34096081]
[1734444557143,0.7190175,4002.7,4001.2,0.34096081]
[1734444558588,0.7190175,4002.7,4001.3,0.55]
[1734444558828,0.7190175,4002.7,4001.4,0.02498753]
[1734444559030,0.7190175,4002.7,4001.5,0.7623]
[1734444559190,0.0356175,4002.7,4001.6,0.76873578]
[1734444559392,0.6834,4003.1,4001.8,0.55]
[1734444559863,0.03542556,4003.0,4002.1,3.0]
[1734444560158,0.03542556,4003.0,4002.2,0.02498366]
[1734444560291,0.03542556,4003.0,4002.3,1.06479837]
[1734444560508,0.03542556,4003.0,4002.4,0.55]
[1734444560710,0.6834,4003.1,4002.4,0.55]
[1734444560941,0.03489583,4003.0,4002.4,0.55]
[1734444561823,0.03489583,4003.0,4002.0,0.55]
[1734444562036,0.6834,4003.1,4002.0,0.55]
[1734444562234,0.86179603,4003.4,4002.2,3.55]
[1734444562746,0.03521354,4003.3,4002.4,0.55]
[1734444562923,0.03521354,4003.3,4002.6,0.55]
[1734444563113,1.72563254,4003.9,4002.7,0.02497783]
[1734444563309,0.03600127,4003.8,4002.6,0.55]
[1734444563521,0.03600127,4003.8,4002.6,3.0]
[1734444563722,0.03600127,4003.8,4002.8,0.55]
[1734444564126,0.03600127,4003.8,4002.7,0.355]
[1734444564529,0.03600127,4003.8,4002.4,0.55]
[1734444564743,0.03600127,4003.8,4002.5,0.0249717]
[1734444565137,0.03600127,4003.8,4002.7,0.55]
[1734444566158,0.6834,4003.7,4002.4,0.55]
[1734444566758,0.89776034,4003.6,4002.4,0.55]
[1734444566945,0.89776034,4003.6,4002.5,0.13123]
[1734444567359,0.6834,4003.5,4001.7,0.7623]
[1734444567855,0.03594076,4003.4,4001.7,0.7623]
[1734444568078,0.6834,4003.3,4001.7,0.7623]
[1734444568644,0.6834,4003.3,4001.6,0.19375198]
[1734444568987,0.03569566,4003.2,4001.6,0.19375198]
[1734444569195,0.6834,4003.1,4001.7,0.19995611]
[1734444569492,0.03546055,4003.0,4001.7,0.19995611]
[1734444569643,0.6834,4002.9,4001.7,0.19995611]
[1734444569846,0.03529037,4002.8,4001.7,0.19995611]
[1734444570191,0.6834,4002.8,4001.7,0.19995611]
[1734444570339,0.03527773,4002.7,4001.8,0.14372172]
[1734444570686,0.6834,4002.8,4001.8,0.14372172]
[1734444571095,0.03527773,4002.7,4001.8,0.14372172]
[1734444571397,0.6834,4002.6,4001.8,0.14372172]
[1734444572879,0.03504759,4002.5,4001.2,0.55]
[1734444573040,0.03504759,4002.5,4001.2,1.15023228]
[1734444573397,0.03504759,4002.5,4001.2,1.17521724]
[1734444574092,0.03504759,4002.5,4001.2,0.55]
[1734444574288,0.03504759,4002.5,4001.3,0.13372849]
[1734444575779,0.03504759,4002.5,4001.4,0.01452195]
[1734444576691,0.03504759,4002.5,4001.3,0.13372849]
[1734444580061,0.6834,4002.4,4001.4,3.0]
[1734444580257,1.04223254,4002.9,4001.3,0.13372849]
[1734444580258,0.03483737,4002.3,4001.3,0.13372849]
[1734444580476,0.6834,4002.2,4000.9,0.55]
[1734444580771,4.04223254,4002.8,4000.6,0.55]
[1734444580772,0.6834,4002.0,4000.6,0.55]
[1734444581167,0.03477184,4001.9,4000.6,0.55]
[1734444581602,0.6834,4002.0,4000.6,0.55]
[1734444582103,0.03477184,4001.9,4000.6,0.55]
[1734444582310,0.6834,4002.0,4000.7,0.13344]
[1734444582454,0.03456688,4001.9,4000.7,0.13344]
[1734444582980,0.6834,4002.0,4000.7,0.13344]
[1734444583395,0.03456688,4001.9,4000.7,0.13344]